bitfinex/quotes_BTCUSD_20260307
["timestamp","ask_amount","ask_price","bid_price","bid_amount"]
[1772895008783,0.02063812,68023.0,68008.0,0.07372024]
[1772895008930,0.02063812,68021.0,68008.0,0.0002]
[1772895009513,0.07350563,68022.0,68008.0,0.10778701]
[1772895009722,0.07350563,68022.0,68010.0,0.10758701]
[1772895009954,0.07350563,68024.0,68010.0,0.10758701]
[1772895010133,0.07350563,68024.0,68014.0,0.10758701]
[1772895010329,0.02063812,68031.0,68013.0,0.01781595]
[1772895010330,0.07497667,68031.0,68015.0,0.01781595]
[1772895010562,0.02063812,68030.0,68013.0,0.00148]
[1772895010785,0.02063812,68029.0,68013.0,0.00148]
[1772895010940,0.02063812,68027.0,68010.0,0.0735186]
[1772895011156,0.02063812,68025.0,68010.0,0.0735186]
[1772895012881,0.07350346,68024.0,68010.0,0.0735186]
[1772895013084,0.00015,68018.0,68012.0,0.12546128]
[1772895013295,0.07498346,68025.0,68013.0,0.10758701]
[1772895013620,0.07498346,68025.0,68015.0,0.10758701]
[1772895013745,0.07350346,68025.0,68015.0,0.10758701]
[1772895015082,0.02063812,68028.0,68015.0,0.10758701]
[1772895015083,0.07349687,68031.0,68017.0,0.1254971]
[1772895015283,0.07389673,68031.0,68019.0,0.10758701]
[1772895015484,0.00039986,68031.0,68019.0,0.10758701]
[1772895015684,0.00039986,68031.0,68021.0,0.10758701]
[1772895017119,0.00039986,68031.0,68022.0,0.18109264]
[1772895017324,0.00039986,68031.0,68023.0,0.10758701]
[1772895017744,0.09412984,68035.0,68023.0,0.10758701]
[1772895017977,0.0001199,68035.0,68025.0,0.10758701]
[1772895018134,0.0001199,68035.0,68026.0,0.00148]
[1772895018948,0.0001199,68035.0,68027.0,0.10758701]
[1772895019527,0.07348725,68040.0,68029.0,0.10758701]
[1772895020308,0.00022001,68041.0,68029.0,0.10758701]
[1772895020511,0.00022001,68041.0,68028.0,0.07349914]
[1772895020512,0.00022001,68041.0,68031.0,0.06183781]
[1772895020715,0.00022001,68041.0,68031.0,0.06195771]
[1772895020892,0.02085813,68041.0,68031.0,0.0001199]
[1772895021295,0.00022001,68035.0,68031.0,0.0001199]
[1772895021492,0.00022001,68035.0,68032.0,0.07349482]
[1772895021638,0.0734794,68047.0,68033.0,0.12592447]
[1772895021844,0.00022001,68042.0,68033.0,0.10758701]
[1772895022567,0.00022001,68042.0,68034.0,0.12593846]
[1772895023379,0.00022001,68049.0,68032.0,0.07497482]
[1772895023578,0.18400324,68058.0,68032.0,0.07497482]
[1772895023579,0.02211812,68057.0,68037.0,0.01928375]
[1772895023781,0.02211812,68057.0,68039.0,0.01928375]
[1772895023988,0.02083562,68053.0,68040.0,0.10758701]
[1772895024909,0.07493796,68067.0,68040.0,0.10758701]
[1772895025106,0.01410628,68077.0,68043.0,0.01928375]
[1772895025107,0.0736579,68064.0,68043.0,0.01928375]
[1772895025308,0.07365862,68064.0,68046.0,0.10758701]
[1772895025515,0.02083562,68064.0,68048.0,0.09276129]
[1772895025714,0.02083562,68064.0,68048.0,0.07347754]
[1772895025916,0.02063812,68062.0,68048.0,0.07347754]
[1772895026304,0.02063812,68062.0,68049.0,0.10758701]
[1772895028337,0.0001704,68065.0,68053.0,0.01928375]
[1772895028538,0.0001704,68065.0,68054.0,0.10906701]
[1772895029294,0.0001704,68065.0,68056.0,0.10758701]
[1772895029497,0.00029036,68065.0,68056.0,0.10758701]
[1772895029702,0.00022001,68062.0,68054.0,0.00148]
[1772895029880,0.00022001,68062.0,68054.0,0.00159996]
[1772895030285,0.00022001,68062.0,68055.0,0.07346998]
[1772895030701,0.00022001,68069.0,68057.0,0.01928375]
[1772895030915,0.02085813,68069.0,68055.0,0.07346998]
[1772895031112,0.02085813,68069.0,68056.0,0.10758701]
[1772895031888,0.02085813,68069.0,68057.0,0.001]
[1772895032179,0.02085813,68069.0,68057.0,0.10858701]
[1772895032500,0.00022001,68069.0,68059.0,0.11425921]
[1772895032731,0.07384927,68075.0,68062.0,0.11425921]
[1772895033003,0.09448739,68075.0,68061.0,0.11425921]
[1772895033432,0.02063812,68074.0,68060.0,0.00148]
[1772895033748,0.02063812,68074.0,68060.0,0.11573921]
[1772895034208,0.07345056,68073.0,68060.0,0.07494434]
[1772895034360,0.02063812,68072.0,68060.0,0.07494434]
[1772895034565,0.02063812,68072.0,68060.0,0.00148]
[1772895035098,0.02063812,68072.0,68060.0,0.07494437]
[1772895036214,0.00148,68080.0,68060.0,0.07494437]
[1772895036419,0.02063812,68083.0,68064.0,0.01928375]
[1772895036617,0.02063812,68081.0,68060.0,0.07494437]
[1772895036871,0.11517475,68078.0,68060.0,0.07346437]
[1772895037077,0.02063812,68076.0,68060.0,0.07494437]
[1772895037288,0.02211812,68076.0,68060.0,0.07494437]
[1772895038050,0.00022001,68074.0,68060.0,0.18905358]
[1772895038221,0.02324409,68074.0,68060.0,0.18905358]
[1772895038421,0.09669387,68074.0,68060.0,0.18905358]
[1772895038653,0.09669387,68074.0,68057.0,0.00148]
[1772895038654,0.02154408,68071.0,68057.0,0.00148]
[1772895039089,0.09669387,68074.0,68058.0,0.13491146]
[1772895039306,0.09521387,68074.0,68059.0,0.02065225]
[1772895039509,0.02154408,68072.0,68057.0,0.00148]
[1772895039789,0.18862423,68076.0,68057.0,0.00148]
[1772895039790,0.073443,68080.0,68060.0,0.11425921]
[1772895039989,0.02154408,68079.0,68062.0,0.11425921]
[1772895040213,0.02154408,68079.0,68063.0,0.00148]
[1772895040432,0.02154408,68077.0,68064.0,0.07346027]
[1772895040839,0.07344516,68078.0,68065.0,0.13491146]
[1772895041556,0.07492328,68080.0,68066.0,0.02065225]
[1772895041706,0.09646736,68080.0,68067.0,0.11425921]
[1772895042564,0.07492328,68080.0,68068.0,0.07345595]
[1772895042929,0.02154408,68077.0,68064.0,0.07345955]
[1772895043081,0.02154408,68076.0,68063.0,0.07346075]
[1772895043696,0.02154408,68074.0,68058.0,0.00148]
[1772895043898,0.12962374,68070.0,68050.0,0.0004]
[1772895044103,0.02154408,68066.0,68048.0,0.07369167]
[1772895044298,0.11517475,68063.0,68048.0,0.0002144]
[1772895044657,0.02154408,68058.0,68040.0,0.11425921]
[1772895044862,0.02154408,68058.0,68006.0,0.0002]
[1772895044863,0.11517475,68055.0,68038.0,0.00148]
[1772895045030,0.02154408,68052.0,68037.0,0.07348835]
[1772895045354,0.02154408,68050.0,68036.0,0.07370444]
[1772895046873,0.07347646,68049.0,68046.0,0.0002]
[1772895047048,0.02154408,68048.0,68046.0,0.0002]
[1772895048378,0.11517475,68045.0,68031.0,0.073495]
[1772895048584,0.02302408,68044.0,68031.0,0.0736149]
[1772895048930,0.02302408,68044.0,68031.0,0.18787411]
[1772895049333,0.02302408,68044.0,68031.0,0.0736149]
[1772895049334,0.02154408,68042.0,68031.0,0.0736149]
[1772895049606,0.02154408,68042.0,68031.0,0.07461576]
[1772895049800,0.02154408,68042.0,68031.0,0.07361576]
[1772895052116,0.02154408,68040.0,68031.0,0.0001199]
[1772895053212,0.02154408,68040.0,68024.0,0.00575]
[1772895053434,0.02154408,68040.0,68013.0,0.20463923]
[1772895053435,0.11517475,68037.0,68019.0,0.07370826]
[1772895053644,0.02154408,68034.0,68022.0,0.07370538]
[1772895054280,0.02154408,68032.0,68022.0,0.0002]
[1772895054448,0.02154408,68031.0,68019.0,0.0002]
[1772895054649,0.02154408,68029.0,68019.0,0.0002]
[1772895054863,0.02154408,68029.0,68016.0,0.07351211]
[1772895055056,0.07349374,68033.0,68019.0,0.11425921]
[1772895055261,0.00148,68029.0,68019.0,0.13491146]
[1772895055466,0.00148,68029.0,68024.0,0.0002]
[1772895055961,0.02302408,68032.0,68024.0,0.0002]
[1772895058568,0.0734959,68031.0,68024.0,0.0002]
[1772895058795,0.02154408,68030.0,68019.0,0.00148]
[1772895059246,0.02154408,68030.0,68017.0,0.0002]
[1772895059472,0.02154408,68030.0,68017.0,0.07519075]
[1772895060093,0.02154408,68030.0,68018.0,0.00015]
[1772895060736,0.0210869,68028.0,68018.0,0.00015]
[1772895060965,0.00148,68031.0,68021.0,0.116856]
[1772895062175,0.0210869,68030.0,68019.0,0.00148]
[1772895062392,0.0210869,68030.0,68018.0,0.00015]
[1772895062603,0.11552843,68029.0,68018.0,0.00015]
[1772895062825,0.0210869,68026.0,68017.0,0.0002]
[1772895063893,0.0210869,68026.0,68018.0,0.0002]
[1772895064560,0.11552843,68023.0,68002.0,0.00148]
[1772895064767,0.0210869,68018.0,68002.0,0.07500707]
[1772895064957,0.0225669,68017.0,68002.0,0.07500707]
[1772895065691,0.0225669,68017.0,68002.0,0.07352717]
[1772895065692,0.0210869,68016.0,68002.0,0.07352717]
[1772895065897,0.0210869,68016.0,68006.0,0.00059986]
[1772895066514,0.0225669,68015.0,68006.0,0.00059986]
[1772895066945,0.07351427,68014.0,68006.0,0.00059986]
[1772895070419,0.07499427,68015.0,68007.0,0.11230434]
[1772895070420,0.00148,68015.0,68007.0,0.11230434]
[1772895070536,0.02013709,68021.0,68007.0,0.13344951]
[1772895070537,0.07498887,68019.0,68007.0,0.13344951]
[1772895070737,0.02013709,68018.0,68007.0,0.11230434]
[1772895070949,0.02013709,68018.0,68006.0,0.07412261]
[1772895076969,0.07351103,68017.0,68006.0,0.07412261]
[1772895077465,0.00022001,68026.0,68008.0,0.02114517]
[1772895077466,0.07350238,68025.0,68008.0,0.02114517]
[1772895077667,0.00148,68024.0,68011.0,0.11230434]
[1772895077903,0.00148,68024.0,68013.0,0.11230434]
[1772895078467,0.09511947,68025.0,68013.0,0.11230434]
[1772895079113,0.07350238,68025.0,68013.0,0.0735144]
[1772895079338,0.07350238,68025.0,68015.0,0.02114517]
[1772895079544,0.07350238,68025.0,68016.0,0.11230434]
[1772895080137,0.00022001,68026.0,68016.0,0.11230434]
[1772895080282,0.07372132,68026.0,68016.0,0.11230434]
[1772895080486,0.07372132,68026.0,68016.0,0.13344951]
[1772895081291,0.07372132,68026.0,68017.0,0.07351103]
[1772895081491,0.07372132,68026.0,68018.0,0.11230434]
[1772895084011,0.07372132,68026.0,68017.0,0.07351103]
[1772895087947,0.07372132,68026.0,68017.0,0.18581537]
[1772895088098,0.07372132,68026.0,68018.0,0.11230434]
[1772895088300,0.07349482,68032.0,68019.0,0.02114517]
[1772895088522,0.07497482,68032.0,68020.0,0.11230434]
[1772895089018,0.07349482,68032.0,68020.0,0.11230434]
[1772895089381,0.07371483,68033.0,68023.0,0.11230434]
[1772895090108,0.00148,68034.0,68024.0,0.07350346]
[1772895090297,0.07348834,68039.0,68027.0,0.11230434]
[1772895090454,0.07348834,68039.0,68029.0,0.11230434]
[1772895091464,0.07360817,68039.0,68027.0,0.00148]
[1772895092161,0.07360817,68039.0,68028.0,0.07349914]
[1772895095805,0.07508817,68039.0,68028.0,0.07349914]
[1772895096197,0.00148,68043.0,68031.0,0.10904457]
[1772895096436,0.07387548,68050.0,68035.0,0.10904457]
[1772895096629,0.00148,68049.0,68038.0,0.02114517]
[1772895096787,0.07535548,68050.0,68039.0,0.10904457]
[1772895097412,0.07377182,68053.0,68041.0,0.10904457]
[1772895097622,0.07525182,68053.0,68043.0,0.10904457]
[1772895097941,0.07525182,68053.0,68043.0,0.13018974]
[1772895098191,0.07377182,68053.0,68043.0,0.13018974]
[1772895098394,0.07525182,68053.0,68043.0,0.13018974]
[1772895098586,0.07525182,68053.0,68044.0,0.02066082]
[1772895098771,0.07525182,68053.0,68044.0,0.12970539]
[1772895099136,0.07377182,68053.0,68044.0,0.12970539]
[1772895099359,0.0736874,68058.0,68047.0,0.10904457]
[1772895099562,0.0736874,68058.0,68047.0,0.12970539]
[1772895099929,0.00022001,68058.0,68048.0,0.02066082]
[1772895100150,0.02067778,68065.0,68050.0,0.12970539]
[1772895100151,0.00148,68062.0,68050.0,0.12970539]
[1772895100347,0.00148,68063.0,68051.0,0.12970539]
[1772895101179,0.00148,68063.0,68045.0,0.00148]
[1772895101404,0.00148,68063.0,68034.0,0.07349206]
[1772895101405,0.10689485,68058.0,68036.0,0.18253507]
[1772895101555,0.02215778,68057.0,68037.0,0.11052457]
[1772895101762,0.02215778,68057.0,68039.0,0.10904457]
[1772895102185,0.10689485,68054.0,68037.0,0.00148]
[1772895102524,0.02067778,68051.0,68037.0,0.00148]
[1772895102728,0.02067778,68049.0,68037.0,0.00148]
[1772895103083,0.02067778,68049.0,68036.0,0.0734905]
[1772895103406,0.02067778,68049.0,68037.0,0.00148]
[1772895103703,0.02067778,68048.0,68037.0,0.00148]
[1772895104111,0.02067778,68048.0,68035.0,0.0734905]
[1772895104307,0.02067778,68048.0,68036.0,0.00148]
[1772895104612,0.02067778,68048.0,68037.0,0.00148]
[1772895105010,0.09415555,68048.0,68037.0,0.00148]
[1772895105640,0.07495629,68050.0,68038.0,0.10904457]
[1772895105837,0.00148,68050.0,68039.0,0.02066082]
[1772895105989,0.00148,68050.0,68040.0,0.10904457]
[1772895106333,0.07495548,68050.0,68040.0,0.10904457]
[1772895106897,0.07495548,68050.0,68040.0,0.18253018]
[1772895107099,0.02067778,68049.0,68040.0,0.07348561]
[1772895110826,0.09414876,68055.0,68041.0,0.10904457]
[1772895111031,0.00148,68053.0,68041.0,0.12970539]
[1772895112218,0.07347322,68052.0,68042.0,0.07348402]
[1772895112585,0.00022001,68049.0,68042.0,0.07348402]
[1772895118195,0.00148173,68048.0,68042.0,0.07348402]
[1772895118551,0.00022001,68049.0,68042.0,0.07348402]
[1772895118800,0.07495322,68052.0,68042.0,0.18252859]
[1772895120381,0.07495322,68052.0,68043.0,0.10904457]
[1772895120590,0.00148,68053.0,68044.0,0.02066082]
[1772895120995,0.07347175,68054.0,68044.0,0.02066082]
[1772895121199,0.00148,68053.0,68043.0,0.10904457]
[1772895121404,0.07347175,68054.0,68043.0,0.10904457]
[1772895121644,0.00148,68053.0,68043.0,0.10904457]
[1772895121845,0.00148,68053.0,68042.0,0.07348402]
[1772895122891,0.07347322,68052.0,68042.0,0.07348402]
[1772895125693,0.05301364,68052.0,68042.0,0.07348402]
[1772895126094,0.02146792,68051.0,68042.0,0.07348402]
[1772895127995,0.02065917,68049.0,68040.0,0.0002]
[1772895128196,0.02065917,68049.0,68039.0,0.07348726]
[1772895128964,0.02065917,68048.0,68034.0,0.07349266]
[1772895129127,0.02065917,68046.0,68034.0,0.07349266]
[1772895129572,0.02065917,68046.0,68039.0,0.0002]
[1772895130177,0.02065917,68044.0,68039.0,0.0002]
[1772895130578,0.02065917,68044.0,68039.0,5e-05]
[1772895130760,0.02213917,68044.0,68039.0,5e-05]
[1772895131190,0.02065917,68044.0,68039.0,5e-05]
[1772895131367,0.02213917,68044.0,68039.0,5e-05]
[1772895131713,0.02065917,68044.0,68039.0,5e-05]
[1772895131858,0.02213917,68044.0,68039.0,5e-05]
[1772895132042,0.07348402,68042.0,68039.0,5e-05]
[1772895132974,0.02065917,68041.0,68033.0,0.000312]
[1772895133658,0.02065917,68041.0,68030.0,0.07349698]
[1772895133957,0.02077907,68041.0,68030.0,0.07349698]
[1772895134137,0.02065917,68039.0,68030.0,0.07349698]
[1772895134503,0.02065917,68039.0,68028.0,0.07369698]
[1772895134709,0.02065917,68037.0,68029.0,0.07497801]
[1772895134907,0.02065917,68037.0,68029.0,0.07349801]
[1772895135663,0.02045958,68038.0,68029.0,0.07349801]
[1772895136471,0.02045958,68038.0,68028.0,0.07369698]
[1772895136646,0.09414859,68037.0,68028.0,0.07369698]
[1772895138817,0.09395066,68036.0,68029.0,0.0002]
[1772895139720,0.07349108,68036.0,68029.0,0.0002]
[1772895141771,0.07348822,68039.0,68029.0,0.0002]
[1772895145626,0.07348822,68039.0,68027.0,0.00148]
[1772895145835,0.02065917,68038.0,68026.0,0.00168]
[1772895146051,0.02065917,68038.0,68026.0,0.0751811]
[1772895147051,0.02065917,68038.0,68026.0,0.0737011]
[1772895147254,0.02065917,68038.0,68027.0,0.00148]
[1772895147673,0.07348942,68037.0,68026.0,0.0002]
[1772895147964,0.02065917,68035.0,68024.0,0.00148]
[1772895148745,0.02065917,68035.0,68022.0,0.0002]
[1772895148940,0.02065917,68035.0,68022.0,0.00168]
[1772895149140,0.02065917,68035.0,68022.0,0.0002]
[1772895149345,0.07348942,68037.0,68015.0,0.07371307]
[1772895149544,0.10583352,68034.0,68015.0,0.07371307]
[1772895149742,0.02065917,68031.0,68016.0,0.07499107]
[1772895149981,0.02065917,68029.0,68016.0,0.07499107]
[1772895150124,0.02065917,68029.0,68016.0,0.00148]
[1772895151240,0.02051254,68029.0,68015.0,0.07371307]
[1772895151461,0.02051254,68029.0,68016.0,0.00148]
[1772895151660,0.02065917,68028.0,68015.0,0.07371307]
[1772895151868,0.02065917,68026.0,68015.0,0.0002]
[1772895153887,0.02065917,68024.0,68015.0,0.0002]
[1772895154092,0.02213917,68024.0,68015.0,0.0002]
[1772895155949,0.02065917,68022.0,68015.0,0.0002]
[1772895158276,0.09436498,68021.0,68015.0,0.0002]
[1772895161514,0.02085827,68020.0,68015.0,0.0002]
[1772895162303,0.07350887,68019.0,68015.0,0.0002]
[1772895162706,0.07350887,68019.0,68015.0,0.00059986]
[1772895163933,0.02085827,68018.0,68015.0,0.00059986]
[1772895164419,0.07351103,68017.0,68015.0,0.00059986]
[1772895166511,0.07498426,68024.0,68015.0,0.00059986]
[1772895166659,0.07371856,68029.0,68019.0,0.1074083]
[1772895166979,0.07371856,68029.0,68021.0,0.1074083]
[1772895168543,0.07371856,68029.0,68022.0,0.07350563]
[1772895168767,0.07371856,68029.0,68022.0,0.18091393]
[1772895171567,0.00022001,68029.0,68022.0,0.18091393]
[1772895171798,0.07386909,68029.0,68023.0,0.1074083]
[1772895175009,0.07386909,68029.0,68023.0,0.18091225]
[1772895178751,0.07349676,68031.0,68023.0,0.18091225]
[1772895181042,0.07349676,68031.0,68023.0,0.18443175]
[1772895181497,0.00022001,68029.0,68023.0,0.18443175]
[1772895181885,0.0734959,68032.0,68023.0,0.07350395]
[1772895182086,0.07349676,68031.0,68024.0,0.13252269]
[1772895182294,8.6e-07,68031.0,68024.0,0.1109278]
[1772895182535,0.00022001,68036.0,68025.0,0.10443035]
[1772895182741,0.00148,68037.0,68028.0,0.12602524]
[1772895183354,0.07389961,68039.0,68029.0,0.07349806]
[1772895185682,0.02149971,68038.0,68029.0,0.07349806]
[1772895188829,0.07348942,68037.0,68023.0,0.07350454]
[1772895189074,0.02164984,68036.0,68021.0,0.07350671]
[1772895189270,0.02164984,68034.0,68021.0,0.07350671]
[1772895189518,0.02164984,68032.0,68020.0,0.07518696]
[1772895189666,0.02164984,68032.0,68021.0,0.00148]
[1772895189871,0.10727657,68030.0,68016.0,0.07351164]
[1772895190115,0.02164984,68027.0,68015.0,0.00059986]
[1772895190285,0.02312984,68027.0,68015.0,0.00059986]
[1772895191027,0.02164984,68025.0,68015.0,0.07411254]
[1772895191434,0.0749813,68027.0,68017.0,0.02105974]
[1772895191637,0.0749813,68027.0,68017.0,0.12549009]
[1772895192424,0.0735013,68027.0,68017.0,0.12549009]
[1772895193007,0.00148,68029.0,68018.0,0.07350995]
[1772895193218,0.02164984,68029.0,68016.0,0.07351208]
[1772895193436,0.02312984,68029.0,68016.0,0.07351208]
[1772895194062,0.02312984,68029.0,68017.0,0.0002]
[1772895194214,0.02334985,68029.0,68017.0,0.0002]
[1772895199756,0.07349914,68028.0,68017.0,0.0002]
[1772895200373,0.09514898,68028.0,68017.0,0.0002]
[1772895200860,0.07349914,68028.0,68017.0,0.0002]
[1772895201062,0.02164984,68027.0,68017.0,0.0002]
[1772895202400,0.0735013,68026.0,68017.0,0.0002]
[1772895202918,0.0735013,68026.0,68017.0,0.00168]
[1772895205554,0.0735013,68026.0,68018.0,0.07350995]
[1772895205937,0.00022001,68029.0,68019.0,0.10443035]
[1772895206274,0.09514161,68035.0,68018.0,0.07350995]
[1772895206275,0.00148,68033.0,68021.0,0.12549009]
[1772895206631,0.00148,68032.0,68021.0,0.02105974]
[1772895207076,0.00148,68032.0,68018.0,0.07350995]
[1772895208309,0.07371826,68029.0,68018.0,0.07350995]
[1772895209266,0.00022001,68036.0,68018.0,0.07350995]
[1772895209468,0.07371113,68036.0,68020.0,0.10443035]
[1772895209624,0.07371113,68036.0,68021.0,0.02105974]
[1772895209835,0.02164984,68034.0,68018.0,0.07350995]
[1772895210057,0.02164984,68034.0,68019.0,0.00148]
[1772895210431,0.07349374,68033.0,68020.0,0.07350779]
[1772895210678,0.07349374,68033.0,68021.0,0.00148]
[1772895211383,0.07349374,68033.0,68022.0,0.00148]
[1772895212496,0.07364175,68035.0,68024.0,0.02105974]
[1772895213254,0.07364175,68035.0,68023.0,0.07350454]
[1772895214791,0.07349482,68032.0,68023.0,0.07350454]
[1772895216382,0.07371394,68033.0,68023.0,0.09456428]
[1772895221465,0.07371394,68033.0,68023.0,0.07350454]
[1772895221975,0.07371394,68033.0,68023.0,0.07498454]
[1772895223522,0.0943694,68033.0,68023.0,0.07498454]
[1772895226097,0.00022001,68034.0,68023.0,0.07498454]
[1772895226297,0.0736417,68035.0,68025.0,0.02101782]
[1772895227753,0.0736417,68035.0,68026.0,0.0735013]
[1772895229295,0.09429716,68035.0,68026.0,0.0735013]
[1772895229804,0.09429716,68035.0,68025.0,0.07350173]
[1772895232327,0.09429716,68035.0,68025.0,0.07376913]
[1772895232328,0.0736417,68035.0,68025.0,0.07376913]
[1772895232481,0.0736417,68035.0,68025.0,0.09478695]
[1772895235360,0.00022001,68039.0,68026.0,0.11346499]
[1772895235589,0.00022001,68039.0,68029.0,0.02101782]
[1772895235791,0.00022001,68039.0,68031.0,0.02101782]
[1772895236191,0.00022001,68039.0,68031.0,0.02116192]
[1772895236390,0.0737032,68043.0,68031.0,0.02116192]
[1772895236769,0.0737032,68043.0,68032.0,0.09451264]
[1772895237147,0.0737032,68043.0,68032.0,0.09465674]
[1772895237705,0.0737032,68043.0,68033.0,0.02101782]
[1772895238194,0.0737032,68043.0,68033.0,0.02116192]
[1772895238789,0.0737032,68043.0,68034.0,0.07349266]
[1772895239105,0.00170001,68047.0,68034.0,0.07349266]
[1772895239106,0.07369431,68052.0,68034.0,0.07349266]
[1772895239318,0.02065546,68049.0,68035.0,0.02249782]
[1772895239516,0.02065546,68049.0,68036.0,0.00148]
[1772895240476,0.0792246,68051.0,68037.0,0.00148]
[1772895240477,0.02065546,68047.0,68037.0,0.00148]
[1772895240678,0.02065546,68045.0,68038.0,0.07348834]
[1772895241236,0.0207508,68043.0,68038.0,0.07348834]
[1772895241399,0.0207508,68043.0,68037.0,0.07348849]
[1772895241599,0.0207508,68043.0,68038.0,0.07348834]
[1772895242015,0.00022001,68043.0,68038.0,0.07348834]
[1772895243221,0.00011992,68047.0,68038.0,0.07348834]
[1772895244852,0.07359881,68047.0,68038.0,0.07348834]
[1772895245059,0.00011992,68047.0,68037.0,0.07348849]
[1772895245259,0.02053079,68046.0,68037.0,0.07348849]
[1772895247413,0.09401127,68046.0,68035.0,0.0001441]
[1772895247614,0.00011992,68047.0,68036.0,0.00148]
[1772895247918,0.00011992,68047.0,68037.0,0.02040174]
[1772895248461,0.00022001,68046.0,68037.0,0.02040174]
[1772895249503,0.00011992,68047.0,68038.0,0.07348834]
[1772895251158,0.10660522,68045.0,68035.0,0.07511562]
[1772895251378,0.02129481,68044.0,68035.0,0.07363562]
[1772895251856,0.02129481,68044.0,68035.0,0.07511562]
[1772895252014,0.07348192,68044.0,68035.0,0.07511562]
[1772895252211,0.10660522,68043.0,68035.0,0.0001441]
[1772895252403,0.02129481,68042.0,68035.0,0.0001441]
[1772895253546,0.02129481,68042.0,68035.0,0.07363547]
[1772895254161,0.02129481,68042.0,68035.0,0.0001441]
[1772895254539,0.07348402,68042.0,68026.0,0.0735013]
[1772895254734,0.10660522,68038.0,68026.0,0.0735013]
[1772895254961,0.02129481,68037.0,68026.0,0.0735013]
[1772895255269,0.02129481,68037.0,68028.0,0.0016033]
[1772895255853,0.02129481,68039.0,68035.0,0.0002]
[1772895256056,0.00170001,68043.0,68035.0,0.0002]
[1772895256228,0.0751834,68043.0,68035.0,0.0002]
[1772895256430,0.09647821,68043.0,68035.0,0.0002]
[1772895257111,0.02299482,68043.0,68035.0,0.0002]
[1772895258620,0.10660522,68042.0,68030.0,0.07349482]
[1772895258843,0.02129481,68041.0,68031.0,0.00148]
[1772895260880,0.09477999,68041.0,68030.0,0.07349482]
[1772895261060,0.09477999,68041.0,68030.0,0.07497482]
[1772895261884,0.02129481,68040.0,68030.0,0.07497482]
[1772895262184,0.02129481,68040.0,68030.0,0.07349482]
[1772895262987,0.07348726,68039.0,68031.0,0.0002]
[1772895263205,0.09478207,68040.0,68031.0,0.0002]
[1772895263959,0.07348726,68040.0,68031.0,0.0002]
[1772895265161,0.07348447,68042.0,68031.0,0.0002]
[1772895265348,0.00022001,68043.0,68032.0,0.02075185]
[1772895265735,0.07370346,68043.0,68032.0,0.02075185]
[1772895265934,0.07348007,68046.0,68032.0,0.02075185]
[1772895266186,0.00148,68045.0,68032.0,0.02075185]
[1772895266490,0.00148,68046.0,68032.0,0.02075185]
[1772895266713,0.00148,68046.0,68032.0,0.10889649]
[1772895266888,0.07507878,68047.0,68033.0,0.02075185]
[1772895267238,0.00011992,68047.0,68034.0,0.07349266]
[1772895267493,0.00011992,68047.0,68035.0,0.02223185]
[1772895270137,0.00011992,68047.0,68036.0,0.0734905]
[1772895270536,0.00033993,68047.0,68036.0,0.0734905]
[1772895270925,0.00033993,68047.0,68036.0,0.09424235]
[1772895271904,0.10660522,68046.0,68036.0,0.00148]
[1772895272105,0.02129481,68045.0,68036.0,0.00148]
[1772895272333,0.07348186,68044.0,68036.0,0.07496962]
[1772895276888,0.02129481,68045.0,68036.0,0.07496962]
[1772895277137,0.07347971,68046.0,68036.0,0.07496962]
[1772895279043,0.00022001,68044.0,68036.0,0.07496962]
[1772895281663,0.02146264,68044.0,68036.0,0.07496962]
[1772895281858,0.02146264,68044.0,68036.0,0.07348962]
[1772895282849,0.09494487,68044.0,68036.0,0.07348962]
[1772895283183,0.09494487,68044.0,68035.0,0.0002]
[1772895283379,0.09494487,68044.0,68035.0,0.00168]
[1772895284200,0.02124263,68043.0,68035.0,0.00168]
[1772895285458,0.02124263,68043.0,68036.0,0.0734905]
[1772895285832,0.07348355,68043.0,68036.0,0.0734905]
[1772895286009,0.09472618,68043.0,68036.0,0.0734905]
[1772895286186,0.02124263,68042.0,68036.0,0.0734905]
[1772895287747,0.02124263,68042.0,68035.0,0.07517077]
[1772895287948,0.02124263,68042.0,68035.0,0.07517111]
[1772895288713,0.02124263,68042.0,68036.0,0.0734905]
[1772895289925,0.07348347,68043.0,68036.0,0.0734905]
[1772895290350,0.09472287,68046.0,68036.0,0.0734905]
[1772895292215,0.07348024,68046.0,68036.0,0.0734905]
[1772895292360,0.02124263,68045.0,68036.0,0.0734905]
[1772895292767,0.02134383,68045.0,68036.0,0.0734905]
[1772895295464,0.09482528,68045.0,68036.0,0.0734905]
[1772895295643,0.09482528,68045.0,68036.0,0.0736905]
[1772895300213,0.07358265,68045.0,68036.0,0.0002]
[1772895300427,0.02124263,68044.0,68036.0,0.0002]
[1772895300935,0.02134383,68044.0,68036.0,0.0002]
[1772895301410,0.02134383,68044.0,68035.0,0.07369111]
[1772895301613,0.11193531,68043.0,68031.0,0.0002]
[1772895301814,0.11193531,68043.0,68025.0,0.07410178]
[1772895301815,0.0198943,68038.0,68025.0,0.07410178]
[1772895302109,0.0198943,68038.0,68023.0,0.07350453]
[1772895302110,0.0198943,68034.0,68023.0,0.07350409]
[1772895302296,0.0198943,68032.0,68022.0,0.07370563]
[1772895302929,0.0198943,68032.0,68023.0,0.00148]
[1772895304382,0.0734959,68031.0,68022.0,0.00168]
[1772895304591,0.0933902,68032.0,68022.0,0.00168]
[1772895304809,0.07349022,68037.0,68025.0,0.02060176]
[1772895305007,0.00148,68037.0,68025.0,0.11116446]
[1772895305219,0.07348559,68041.0,68026.0,0.02060176]
[1772895305420,0.07370412,68042.0,68029.0,0.11116446]
[1772895305645,0.07370412,68042.0,68032.0,0.02060176]
[1772895306669,0.07370412,68042.0,68033.0,0.07349374]
[1772895309604,0.01915707,68041.0,68033.0,0.07349374]
[1772895311767,0.07348618,68040.0,68032.0,0.07349374]
[1772895317199,0.07348618,68040.0,68031.0,0.07349575]
[1772895317453,0.09247591,68040.0,68031.0,0.07349575]
[1772895319780,0.09269592,68040.0,68031.0,0.07349575]
[1772895322001,0.09269592,68040.0,68029.0,0.0734959]
[1772895323533,0.09269592,68040.0,68029.0,0.0749759]
[1772895323894,0.09269592,68040.0,68029.0,0.0734959]
[1772895326866,0.09269592,68040.0,68029.0,0.0736959]
[1772895328368,0.07370619,68040.0,68029.0,0.0736959]
[1772895328566,0.01898973,68039.0,68029.0,0.0002]
[1772895329001,0.02046973,68039.0,68029.0,0.0002]
[1772895330524,0.07348834,68038.0,68029.0,0.0002]
[1772895332570,0.07348834,68038.0,68025.0,0.02031388]
[1772895332571,0.01898973,68037.0,68022.0,0.07370563]
[1772895332705,0.01898973,68036.0,68022.0,0.07370563]
[1772895333380,0.01898973,68036.0,68029.0,0.0002]
[1772895335960,0.07349158,68035.0,68029.0,0.0002]
[1772895336582,0.09248131,68035.0,68029.0,0.0002]
[1772895340852,0.10558827,68033.0,68018.0,0.07385956]
[1772895341054,0.01996548,68029.0,68018.0,0.00035]
[1772895341293,0.00022001,68040.0,68020.0,0.10822351]
[1772895341482,0.0737071,68040.0,68024.0,0.10822351]